Workbook

Sheet 1. Introdução
A1: FERRAMENTA DE VERIFICAÇÃO DO MODELO DE RECOLHA DE BIORRESÍDUOS
B3: INTRODUÇÃO
B4: É uma autarquia local com intenção de implementar um sistema de recolha seletiva de biorresíduos, mas não sabe quais são as melhores soluções para o seu território e quanto custará? Esta é uma ferramenta de tomada de decisão concebida para as autoridades locais que pretendem implementar uma solução custo-eficiente para a gestão de biorresíduos, e tem como objetivo ajudar a desenhar a base do sistema que melhor se adequa ao seu contexto territorial e a atingir os seus objetivos de recuperação e valorização da fração alimentar dos biorresíduos. Esta ferramenta fornecerá recomendações sobre as soluções de recolha e compostagem local mais eficientes, com base nas informações introduzidas pelo utilizador, e avaliará o seu desempenho de acordo com indicadores operacionais, económicos e ambientais, tais como: . taxa de valorização de resíduos alimentares . equipamento necessário (e.g., número e tipo de contentores) . afetação de recursos (e.g., veículos e mão-de-obra) . indicadores de eficiência da recolha (e.g.,quantidade recolhida por circuito diário; produtividade anual das equipas e veículos de recolha) . estimativas CAPEX e OPEX . emissões de CO2 equivalente A ferramenta também permite avaliar um cenário comparativo com base nas escolhas do utilizador sobre as opções técnicas para a recuperação e valorização dos resíduos alimentares.
B6: INSTRUÇÕES
B7: Esta ferramenta é composta por sete folhas, conforme apresentado no diagrama à direita. Os utilizadores devem introduzir as informações requeridas nas células azuis, nas folhas "2.Scan" e "3A.Input", para que os resultados da análise sejam apresentados nas páginas "3B. Modelação da Recolha" e "3C. Análise de CB". O resumo dos principais resultados e os KPI podem ser consultados na página "4. Resultados". Os valores utilizados por defeito nos parâmetros operacionais e económicos são apresentados na página "5.Pressupostos", bem como as respetivas referências, no entanto os utilizadores podem alterá-los de acordo com a sua experiência de forma a aumentar a precisão dos resultados. As células azuis representam dados de entrada a serem preenchidos pelo utilizador As células cinzentas representam cálculos intermédios As células verdes representam os resultados finais da análise
B9: AUTORES
B10: NORION Consult Mehlart Consulting 3drivers

Sheet 2. Scan
A1: Scan
B3: Instruções | J3: input do utilizador
B4: 1. A folha "Scan" permite aos utilizadores fazer uma análise simplificada dos potenciais modelos de recolha de biorresíduos. 2. Os utilizadores começam por introduzir o seu objetivo de recolha de biorresíduos, a população e o número de alojamentos ("Parâmetros essenciais"). 3. Em seguida, os utilizadores fornecem o acesso existente aos sistemas de recolha seletiva (porta-a-porta, coletivo < 200 m e sacos óticos) e algumas perguntas de sim/não. 4. Os resultados, incluindo as recomendações, a taxa de recolha prevista e os custos, são apresentados no final, nas caixas verdes. | J4: cálculo intermédio
J5: resultados
B6: Parâmetros essenciais
B7: Objectivo da taxa de recolha de biorresíduos (%gerados) | C7: 0.5
B8: População | C8: 29538
B9: Alojamentos | C9: 22129
C11: Quantos alojamentos já têm acesso à recolha de RU através de…
B12: Quantos alojamentos existem em… | C12: Recolha PaP | D12: Coletiva (<200 m) | E12: Sacos óticos | F12: Total
B13: Áreas urbanas densas | C13: 0 | D13: 0 | E13: 0 | F13: =SUM(C13:E13) -> 0
B14: Áreas urbanas dispersas | C14: 5000 | D14: 0 | E14: 0 | F14: =SUM(C14:E14) -> 5000
B15: Comunidades rurais | C15: 0 | D15: =22129-5000 -> 17129 | E15: 0 | F15: =SUM(C15:E15) -> 17129
B16: Total | C16: =SUM(C13:C15) -> 5000 | D16: =SUM(D13:D15) -> 17129 | E16: 0 | F16: =IF(SUM(F13:F15)=C9,SUM(F13:F15),"ERRO - por favor, reveja esta informação, este total deve corresponder ao total de alojamentos no Município anteriormente inserido") -> 22129
C18: Sim/Não
B19: A empresa regional tem capacidade para classificar os sacos por cor? | C19: Não
B20: A empresa de tratamento de resíduos dispõe de instalações de DA ou de compostagem? | C20: Digestão anaeróbia
B22: Recomendações
B23: =_xlfn.TEXTJOIN(" ",TRUE,IF($D$35:$D$41=1,$C$35:$C$41,"")) -> As soluções de compostagem local são recomendadas devido ao carácter rural do território. Os biorresíduos podem ser facilmente integrados no actual modelo PaP.
B25: Taxa de recolha de biorresíduos (%gerados)
B26: ='3B. Modelação da Recolha'!D35 -> 0.5064869628 | C26: =IF(B26<C7, "Não é possível atingir o objectivo com as opções escolhidas. Por favor, reinicie e considere a possibilidade de reduzir o seu objectivo, aumentar o âmbito geográfico ou...", "") -> 
B28: Custo líquido do sistema de recolha
B29: Custo por tonelada | C29: ='3C. Análise de CB'!D40 -> 130.8063609
B30: Custo por alojamento servido | C30: ='3C. Análise de CB'!D39 -> 13.62682453
B32: Cálculos auxiliares | Critérios
B34: Recomendação n.º | C34: Recomendações | D34: Verificação
B35: R0 | C35: As soluções compostagem local são recomendadas devido à falta de economias de escala. Verificar se os alojamentos têm espaço suficiente e se estão dispostos a efetuar a compostagem. | D35: =IF(F16<=4000,1,0) -> 0
B36: R1 | C36: As soluções de compostagem local são recomendadas devido ao carácter rural do território. | D36: =IF(D35, 0, IF(F15/F16>0.5,1,0)) -> 1
B37: R2 | C37: Os biorresíduos podem ser facilmente integrados no actual modelo PaP. | D37: =IF(C16/F16>0.1,1,0) -> 1
B38: R3 | C38: Um modelo de co-colecção é adequado se a empresa regional puder separar os sacos por cor, utilizando, por exemplo, o sistema de sacos óticos. Trata-se de um modelo rentável para aumentar a recolha de biorresíduos. | D38: =IF(C19="Yes",1,0) -> 0
B39: R4 | C39: Recomenda-se a recolha através de pontos de proximidade, uma vez que a recolha porta-a-porta ainda não está implementada, mas a elevada densidade populacional pode justificar uma recolha dedicada. | D39: =IF(SUM(C44:C45)=F16,0,IF((D14+D13)>4000,1,0)) -> 0
B40: R5 | C40: (novos critérios)
B41: R9 | C41: Existem poucas opções disponíveis devido à falta de escala. É favor considerar a possibilidade de trabalhar a uma escala mais alargada, por exemplo, assumindo uma abordagem regional, i.e. trabalhando com outros municípios. | D41: =IF(SUM(D36:D40), 0, 1) -> 0
B43: Sistema baseado nas recomendações
B44: Compostores domésticos | C44: =IF(D36=1,F15,0) -> 17129
B45: Porta-a-Porta | C45: =IF(D37=1,C16,0) -> 5000
B46: Coletivo (contentores na via pública) | C46: =IF(D39=1,F16-SUM(C44:C45),0) -> 0
B47: N.º contentores na via pública necessários | C47: =ROUNDUP(C46/'5. Pressupostos'!D8,0) -> 0
B48: Sacos óticos | C48: =IF(D38=1,SUM(E13:E15),0) -> 0
B49: Recolha de resíduos alimentares - recursos afetados
B50: Veículos | C50: =ROUNDUP((C45*'5. Pressupostos'!C7)/('5. Pressupostos'!C9*'5. Pressupostos'!C10*'5. Pressupostos'!C11)+(C47*'5. Pressupostos'!D7)/('5. Pressupostos'!D9*'5. Pressupostos'!D10*'5. Pressupostos'!D11),0) -> 4
B51: Equipas (1 condutor + 2 operadores) | C51: =C50*2 -> 8

Sheet 3A. Input
A1: Informações da Autoridade Local
B3: Nome da Autoridade Local | D3: Município 1
K4: input do utilizador
B5: Dados demográficos | K5: cálculos intermediários
B6: População | C6: hab. | D6: 29538 | K6: resultados
B7: Densidade populacional | C7: hab/km2 | D7: 17
B8: Alojamentos | C8: aloj. | D8: 22129
B10: Produção de RU
B11: RU gerados anualmente | C11: t/ano | D11: 15695
B12: Proporção de resíduos alimentares presentes nos RU | C12: % | D12: 0.29
B14: Resíduos alimentares produzidos anualmente | C14: t/ano | D14: =D11*D12 -> 4551.55
B15: Resíduos alimentares produzidos anualmente por alojamento | C15: kg/aloj./ano | D15: =(D14)/D8*1000 -> 205.6825885
B17: Tratamento de RU
B18: Solução de tratamento para a fração resto | D18: Incineração
B19: Solução de tratamento para biorresíduos | D19: Digestão anaeróbia
B22: TGR | C22: €/t | D22: =IF(D18="Aterro",45,35) -> 35
B23: Tarifa em alta aplicada aos biorresíduos | C23: €/t | D23: 0
B25: TGR | C25: €/t | D25: =IF(D18="Incineração",'5. Pressupostos'!C40*_xlfn.IFS('3B. Modelação da Recolha'!D36<'5. Pressupostos'!B46,'5. Pressupostos'!E40,(AND('3B. Modelação da Recolha'!D36>='5. Pressupostos'!B46,'3B. Modelação da Recolha'!D36,'3B. Modelação da Recolha'!D36<'5. Pressupostos'!B47)),('5. Pressupostos'!E40-'5. Pressupostos'!D46),AND('3B. Modelação da Recolha'!D36>='5. Pressupostos'!B47,'3B. Modelação da Recolha'!D36<'5. Pressupostos'!B48),('5. Pressupostos'!E40-'5. Pressupostos'!D47),'3B. Modelação da Recolha'!D36>='5. Pressupostos'!B48,('5. Pressupostos'!E40-'5. Pressupostos'!D48)),0)+IF(D18="Aterro",'5. Pressupostos'!C40*_xlfn.IFS('3B. Modelação da Recolha'!D36<'5. Pressupostos'!B46,'5. Pressupostos'!D40,(AND('3B. Modelação da Recolha'!D36>='5. Pressupostos'!B46,'3B. Modelação da Recolha'!D36,'3B. Modelação da Recolha'!D36<'5. Pressupostos'!B47)),('5. Pressupostos'!D40-'5. Pressupostos'!C46),AND('3B. Modelação da Recolha'!D36>='5. Pressupostos'!B47,'3B. Modelação da Recolha'!D36<'5. Pressupostos'!B48),('5. Pressupostos'!D40-'5. Pressupostos'!C47),'3B. Modelação da Recolha'!D36>='5. Pressupostos'!B48,('5. Pressupostos'!D40-'5. Pressupostos'!C48))) -> 4.375
B27: Benefícios financeiros da recolha de RA | C27: €/t | D27: 0
B30: Se pretende analisar uma solução alternativa para a recolha de resíduos alimentares, preencha as seguintes informações:
B31: Número de alojamentos a serem servidos por....
B32: Recolha porta-a-porta | C32: aloj. | D32: 0
B33: Recolha coletiva (contentores na via pública) | C33: aloj. | D33: 0
B34: Sistema por sacos óticos | C34: aloj. | D34: 0
B35: Soluções de compostagem local | C35: aloj. | D35: 22129

Sheet 3B. Modelação da Recolha
A1: Modelação da recolha selectiva de resíduos alimentares
D3: CENÁRIO SCAN | E3: CENÁRIO DO UTILIZADOR
B4: Modelo de recolha (a implementar)
B5: Número de alojamentos que beneficiam do serviço de recolha de resíduos alimentares
B6: Porta-a-porta | C6: aloj. servidos | D6: ='2. Scan'!C45 -> 5000 | E6: ='3A. Input'!D32 -> 0
B7: Coletivo (contentores na via pública) | C7: aloj. servidos | D7: ='2. Scan'!C46 -> 0 | E7: ='3A. Input'!D33 -> 0
B8: Sistema por sacos óticos | C8: aloj. servidos | D8: ='2. Scan'!C48 -> 0 | E8: ='3A. Input'!D34 -> 0
B9: Compostagem local | C9: aloj. servidos | D9: ='2. Scan'!C44 -> 17129 | E9: ='3A. Input'!D35 -> 22129
B10: TOTAL | C10: aloj. servidos | D10: =SUM(D6:D9) -> 22129 | E10: =SUM(E6:E9) -> 22129
B12: Tencionam fornecer sacos para baldes de cozinha gratuitamente? | D12: Sim | E12: Sim
B13: Em caso afirmativo, quantos por alojamento por semana? | C13: n.º/aloj./sem. | D13: 3 | E13: 3
B15: Equipamentos e Recursos
B16: Número de contentores necessários
B17: Porta-a-porta (contentor de 30L) | C17: n.º | D17: =ROUND(D6/'5. Pressupostos'!$C$8,0) -> 5000 | E17: =ROUND(E6/'5. Pressupostos'!$C$8,0) -> 0
B18: Contentores de recolha coletiva (120-240L bin) | C18: n.º | D18: =ROUNDUP(D7/'5. Pressupostos'!$D$8,0) -> 0 | E18: =ROUNDUP(E7/'5. Pressupostos'!$D$8,0) -> 0
B19: Contentores para sacos óticos (contentor de 1100L) | C19: n.º | D19: =ROUNDUP(D8/'5. Pressupostos'!$E$8,0) -> 0 | E19: =ROUNDUP(E8/'5. Pressupostos'!$E$8,0) -> 0
B20: Baldes de cozinha | C20: n.º | D20: =D10 -> 22129 | E20: =E10 -> 22129
B21: Sacos para baldes de cozinha | C21: n.º/ano | D21: =IF(D12="Yes",SUM(D6:D7,D9:D9)*D13*52,0) -> 0 | E21: =IF(E12="Yes",SUM(E6:E7,E9:E9)*E13*52,0) -> 0
B22: Sacos óticos | C22: n.º/ano | D22: =D8*'5. Pressupostos'!E7*52 -> 0 | E22: =E8*'5. Pressupostos'!E7*52 -> 0
B23: Contentores para compostagem local | C23: n.º | D23: =D9 -> 17129 | E23: =E9 -> 22129
B25: Alocação de recursos
B26: Circuitos diários necessários | C26: n.º | D26: =(D17*'5. Pressupostos'!$C$7/('5. Pressupostos'!$C$9*'5. Pressupostos'!$C$10))+((D18*'5. Pressupostos'!$D$7/('5. Pressupostos'!$D$9*'5. Pressupostos'!$D$10)))+(((D8/'5. Pressupostos'!$E$8)*'5. Pressupostos'!$E$7)/('5. Pressupostos'!$E$9*'5. Pressupostos'!$E$10*'5. Pressupostos'!$E$11))*0.5 -> 6.666666667 | E26: =(E17*'5. Pressupostos'!$C$7/('5. Pressupostos'!$C$9*'5. Pressupostos'!$C$10))+((E18*'5. Pressupostos'!$D$7/('5. Pressupostos'!$D$9*'5. Pressupostos'!$D$10)))+((E19*'5. Pressupostos'!$E$7)/('5. Pressupostos'!$E$9*'5. Pressupostos'!$E$10*'5. Pressupostos'!$E$11))*0.5 -> 0
B27: Veículos - Camião de 19 Ton | C27: n.º | D27: =ROUNDUP(D26/'5. Pressupostos'!$C$11,0) -> 4 | E27: =ROUNDUP(E26/'5. Pressupostos'!$C$11,0) -> 0
B28: Equipas (1 condutor + 2 operadores) | C28: n.º | D28: =D26*1.2 -> 8 | E28: =E26*1.2 -> 0
B29: Operador de monitorização de compostagem local | C29: n.º | D29: =((D23*'5. Pressupostos'!$F$14)/('5. Pressupostos'!$F$16*'5. Pressupostos'!$F$10*50)) -> 22.83866667 | E29: =((E23*'5. Pressupostos'!$F$14)/('5. Pressupostos'!$F$16*'5. Pressupostos'!$F$10*50)) -> 29.50533333
B31: Taxa de valorização de resíduos alimentares atingida
B32: Resíduos alimentares recolhidos | C32: t/ano | D32: =(D6*'5. Pressupostos'!$C$6+D7*'5. Pressupostos'!$D$6+D8*'5. Pressupostos'!$E$6)*'3A. Input'!$D$15/1000 -> 719.8890596 | E32: =(E6*'5. Pressupostos'!$C$6+E7*'5. Pressupostos'!$D$6+E8*'5. Pressupostos'!$E$6)*'3A. Input'!$D$15/1000 -> 0
B33: Resíduos alimentares compostados localmente | C33: t/ano | D33: =+(D9*'5. Pressupostos'!$F$6)*'3A. Input'!$D$15/1000 -> 1585.411676 | E33: =+(E9*'5. Pressupostos'!$F$6)*'3A. Input'!$D$15/1000 -> 2048.1975
B34: Total de resíduos alimentares recuperados | C34: t/ano | D34: =SUM(D32:D33) -> 2305.300736 | E34: =SUM(E32:E33) -> 2048.1975
B35: Taxa de captura | C35: % | D35: =D34/('3A. Input'!$D$14) -> 0.5064869628 | E35: =E34/('3A. Input'!$D$14) -> 0.45
B36: Contribuição para a taxa de PRR | C36: % | D36: =D34/'3A. Input'!$D$11 -> 0.1468812192 | E36: =E34/'3A. Input'!$D$11 -> 0.1305

Sheet 3C. Análise de CB
A1: Análise de custo-benefício
D3: CENÁRIO SCAN | E3: CENÁRIO DO UTILIZADOR
B4: CAPEX
B5: Contentores | C5: € | D5: ='3B. Modelação da Recolha'!D17*'5. Pressupostos'!$C$22+'3B. Modelação da Recolha'!D18*'5. Pressupostos'!$C$23+'3B. Modelação da Recolha'!D19*'5. Pressupostos'!$C$24*0.5+'3B. Modelação da Recolha'!D20*'5. Pressupostos'!$C$25+'3B. Modelação da Recolha'!D18*'5. Pressupostos'!$C$27+'3B. Modelação da Recolha'!D23*'5. Pressupostos'!$C$28 -> 1006450 | E5: ='3B. Modelação da Recolha'!E17*'5. Pressupostos'!$C$22+'3B. Modelação da Recolha'!E18*'5. Pressupostos'!$C$23+'3B. Modelação da Recolha'!E19*'5. Pressupostos'!$C$24*0.5+'3B. Modelação da Recolha'!E20*'5. Pressupostos'!$C$25+'3B. Modelação da Recolha'!E18*'5. Pressupostos'!$C$27+'3B. Modelação da Recolha'!E23*'5. Pressupostos'!$C$28 -> 1106450
B6: Veículos | C6: € | D6: ='5. Pressupostos'!$C$31*'3B. Modelação da Recolha'!D27 -> 560000 | E6: ='5. Pressupostos'!$C$31*'3B. Modelação da Recolha'!E27 -> 0
B7: CAPEX | C7: € | D7: =SUM(D5:D6) -> 1566450 | E7: =SUM(E5:E6) -> 1106450
C8: €/aloj. Servidos | D8: =D7/('3B. Modelação da Recolha'!D10) -> 70.78720231 | E8: =E7/('3B. Modelação da Recolha'!E10) -> 50
B9: Investimento anualizado | C9: € | D9: =(D5/'5. Pressupostos'!$J$42)+('3C. Análise de CB'!D6/'5. Pressupostos'!$J$43) -> 257290 | E9: =(E5/'5. Pressupostos'!$J$42)+('3C. Análise de CB'!E6/'5. Pressupostos'!$J$43) -> 221290
B11: OPEX
B12: Contentores | C12: €/ano | D12: ='3B. Modelação da Recolha'!D17*'5. Pressupostos'!$E$22+'3B. Modelação da Recolha'!D18*'5. Pressupostos'!$E$23+'3B. Modelação da Recolha'!D19*'5. Pressupostos'!$E$23*0.5+'3B. Modelação da Recolha'!D20*'5. Pressupostos'!$E$25+'3B. Modelação da Recolha'!D18*'5. Pressupostos'!$E$27+'3B. Modelação da Recolha'!D23*'5. Pressupostos'!$E$28 -> 30193.5 | E12: ='3B. Modelação da Recolha'!E17*'5. Pressupostos'!$E$22+'3B. Modelação da Recolha'!E18*'5. Pressupostos'!$E$23+'3B. Modelação da Recolha'!E19*'5. Pressupostos'!$E$24*0.5+'3B. Modelação da Recolha'!E20*'5. Pressupostos'!$E$25+'3B. Modelação da Recolha'!E18*'5. Pressupostos'!$E$27+'3B. Modelação da Recolha'!E23*'5. Pressupostos'!$E$28 -> 33193.5
B13: Sacos para baldes de cozinha | C13: €/ano | D13: ='3B. Modelação da Recolha'!D21*('5. Pressupostos'!$C$26+'5. Pressupostos'!$E$33) -> 0 | E13: ='3B. Modelação da Recolha'!E21*('5. Pressupostos'!$C$26+'5. Pressupostos'!$E$33) -> 0
B14: Sacos óticos | C14: €/ano | D14: ='3B. Modelação da Recolha'!D22*('5. Pressupostos'!$C$26+'5. Pressupostos'!$E$33) -> 0 | E14: ='3B. Modelação da Recolha'!E22*('5. Pressupostos'!$C$26+'5. Pressupostos'!$E$33) -> 0
B15: RH | C15: €/ano | D15: ='3B. Modelação da Recolha'!D28*'5. Pressupostos'!$E$30+'3B. Modelação da Recolha'!D29*'5. Pressupostos'!$E$30 -> 555096 | E15: ='3B. Modelação da Recolha'!E28*'5. Pressupostos'!$E$30+'3B. Modelação da Recolha'!E29*'5. Pressupostos'!$E$30 -> 531096
B16: Fiscalização | C16: €/ano | D16: ='5. Pressupostos'!E34*D9 -> 12864.5 | E16: ='5. Pressupostos'!E34*E9 -> 11064.5
B17: Veículos | C17: €/ano | D17: ='3B. Modelação da Recolha'!D27*'5. Pressupostos'!$E$31+'5. Pressupostos'!$C$13*'3B. Modelação da Recolha'!D34*'5. Pressupostos'!$E$32 -> 94243.11986 | E17: ='3B. Modelação da Recolha'!E27*'5. Pressupostos'!$E$31+'5. Pressupostos'!$C$13*'3B. Modelação da Recolha'!E34*'5. Pressupostos'!$E$32 -> 55301.3325
B18: CUSTOS DE RECOLHA | C18: €/ano | D18: =SUM(D12:D17) -> 692397.1199 | E18: =SUM(E12:E17) -> 630655.3325
C19: €/aloj. servido | D19: =D18/'3B. Modelação da Recolha'!D10 -> 31.28912829 | E19: =E18/'3B. Modelação da Recolha'!E10 -> 28.49904345
B21: Tarifa em alta aplicada aos biorresíduos | C21: €/ano | D21: ='3B. Modelação da Recolha'!D34*'3A. Input'!$D$23 -> 0 | E21: ='3B. Modelação da Recolha'!E34*'3A. Input'!$D$23 -> 0
B22: CUSTOS DE TRATAMENTO | C22: €/ano | D22: =SUM(D21:D21) -> 0 | E22: =SUM(E21:E21) -> 0
C23: €/aloj. servido | D23: =D22/'3B. Modelação da Recolha'!D10 -> 0 | E23: =E22/'3B. Modelação da Recolha'!E10 -> 0
B25: CUSTOS DE COMUNICAÇÃO | C25: €/ano | D25: ='5. Pressupostos'!$E$21*'3B. Modelação da Recolha'!D10 -> 44258 | E25: ='5. Pressupostos'!$E$21*'3B. Modelação da Recolha'!E10 -> 44258
B27: OPEX | C27: €/ano | D27: =D22+D25 -> 44258 | E27: =E22+E25 -> 44258
C28: €/aloj. Servido | D28: =D27/'3B. Modelação da Recolha'!D10 -> 2 | E28: =E27/'3B. Modelação da Recolha'!E10 -> 2
C29: €/t | D29: =D27/'3B. Modelação da Recolha'!D34 -> 19.19836285 | E29: =E27/'3B. Modelação da Recolha'!E34 -> 21.60826776
B31: Benefícios
B32: Poupanças resultantes do desvio de resíduos alimentares | C32: €/ano | D32: =SUM(D33:D34) -> 90771.21646 | E32: =SUM(E33:E34) -> 80647.77656
B33: Tarifa evitada | C33: €/ano | D33: ='3B. Modelação da Recolha'!D34*('3A. Input'!$D$22) -> 80685.52575 | E33: ='3B. Modelação da Recolha'!E34*('3A. Input'!$D$22) -> 71686.9125
B34: TGR evitada | C34: €/ano | D34: ='3B. Modelação da Recolha'!D34*('3A. Input'!$D$25) -> 10085.69072 | E34: ='3B. Modelação da Recolha'!E34*('3A. Input'!$D$25) -> 8960.864062
B35: Vantagens financeiras da recolha de resíduos alimentares | C35: €/ano | D35: ='3B. Modelação da Recolha'!D34*'3A. Input'!D27 -> 0 | E35: ='3B. Modelação da Recolha'!E34*'3A. Input'!D27 -> 0
B38: Custos líquidos | C38: €/ano | D38: =D27+D9 -> 301548 | E38: =E27+E9 -> 265548
C39: €/(ano x aloj. Servido) | D39: =D38/'3B. Modelação da Recolha'!D10 -> 13.62682453 | E39: =E38/'3B. Modelação da Recolha'!E10 -> 12
C40: €/t | D40: =D38/'3B. Modelação da Recolha'!D34 -> 130.8063609 | E40: =E38/'3B. Modelação da Recolha'!E34 -> 129.6496065
B44: Impactes ambientais
B45: Recolha de resíduos alimentares | C45: t CO2 eq | D45: ='5. Pressupostos'!$C$59*'5. Pressupostos'!$C$13*'3B. Modelação da Recolha'!D32 -> 28.9395402 | E45: ='5. Pressupostos'!$C$59*'5. Pressupostos'!$C$13*'3B. Modelação da Recolha'!E32 -> 0
B46: Tratamento de resíduos alimentares | C46: t CO2 eq | D46: =IF('3A. Input'!$D$19="Digestão anaeróbia",'3B. Modelação da Recolha'!D32*'5. Pressupostos'!$C$61,'3B. Modelação da Recolha'!D32*'5. Pressupostos'!$C$60) -> 6.414630061 | E46: =IF('3A. Input'!$D$19="Digestão anaeróbia",'3B. Modelação da Recolha'!E32*'5. Pressupostos'!$C$61,'3B. Modelação da Recolha'!E32*'5. Pressupostos'!$C$60) -> 0
B47: Soluções de compostagem local | C47: t CO2 eq | D47: ='3B. Modelação da Recolha'!D33*'5. Pressupostos'!$C$62 -> 14.12693978 | E47: ='3B. Modelação da Recolha'!E33*'5. Pressupostos'!$C$62 -> 18.25063054
B49: Emissões evitadas pelo desvio de resíduos alimentares de aterro | C49: t CO2 eq | D49: =IF('3A. Input'!$D$18="Aterro",'3B. Modelação da Recolha'!D34*(-'5. Pressupostos'!$C$64),'3B. Modelação da Recolha'!D34*(-'5. Pressupostos'!$C$63)) -> -49.05724642 | E49: =IF('3A. Input'!$D$18="Aterro",'3B. Modelação da Recolha'!E34*(-'5. Pressupostos'!$C$64),'3B. Modelação da Recolha'!E34*(-'5. Pressupostos'!$C$63)) -> -43.58603974
B51: Emissões líquidas | C51: t CO2 eq | D51: =SUM(D45:D47)+D49 -> 0.4238636245 | E51: =SUM(E45:E47)+E49 -> -25.3354092

Sheet 4. Resultados
A1: Resultados
D3: CENÁRIO SCAN | E3: CENÁRIO DO UTILIZADOR
B4: Taxa de valorização de resíduos alimentares atingida
B5: Total de resíduos alimentares recuperados | C5: t/ano | D5: ='3B. Modelação da Recolha'!D34 -> 2305.300736 | E5: ='3B. Modelação da Recolha'!E34 -> 2048.1975
B6: Taxa de captura | C6: % | D6: ='3B. Modelação da Recolha'!D35 -> 0.5064869628 | E6: ='3B. Modelação da Recolha'!E35 -> 0.45
B7: Diferença para a taxa pretendida | C7: p.p. | D7: =(D6-'2. Scan'!$C$7)*100 -> 0.6486962809 | E7: =(E6-'2. Scan'!$C$7)*100 -> -5
B8: Indicadores de eficiência da recolha de resíduos alimentares
B9: Quantidade recolhida por circuito diário | C9: t/circuito | D9: =IF('3B. Modelação da Recolha'!D32=0,0,'3B. Modelação da Recolha'!D32/('3B. Modelação da Recolha'!D26*'5. Pressupostos'!$C$10*52)) -> 0.4153206113 | E9: =IF('3B. Modelação da Recolha'!E32=0,0,'3B. Modelação da Recolha'!E32/('3B. Modelação da Recolha'!E26*'5. Pressupostos'!$C$10*52)) -> 0
B10: Produtividade anual das equipas de recolha | C10: t/equipa.ano | D10: =IF('3B. Modelação da Recolha'!D32=0,0,'3B. Modelação da Recolha'!D32/'3B. Modelação da Recolha'!D28) -> 89.98613245 | E10: =IF('3B. Modelação da Recolha'!E32=0,0,'3B. Modelação da Recolha'!E32/'3B. Modelação da Recolha'!E28) -> 0
B11: Produtividade anual dos veículos de recolha | C11: t/veículo.ano | D11: =IF('3B. Modelação da Recolha'!D32=0,0,'3B. Modelação da Recolha'!D32/'3B. Modelação da Recolha'!D27) -> 179.9722649 | E11: =IF('3B. Modelação da Recolha'!E32=0,0,'3B. Modelação da Recolha'!E32/'3B. Modelação da Recolha'!E27) -> 0
B12: (…)
B14: Análise custo-benefício
B15: Investimento previsto | C15: € | D15: ='3C. Análise de CB'!D7 -> 1566450 | E15: ='3C. Análise de CB'!E7 -> 1106450
B16: Custos operacionais por tonelada recuperada | C16: €/t | D16: ='3C. Análise de CB'!D29 -> 19.19836285 | E16: ='3C. Análise de CB'!E29 -> 21.60826776
B17: Custos operacionais por alojamento servido | C17: €/aloj. servido | D17: ='3C. Análise de CB'!D28 -> 2 | E17: ='3C. Análise de CB'!E28 -> 2
B18: Poupança e rendimentos | C18: €/ano | D18: ='3C. Análise de CB'!D32+'3C. Análise de CB'!D35 -> 90771.21646 | E18: ='3C. Análise de CB'!E32+'3C. Análise de CB'!E35 -> 80647.77656
B19: Impactes ambientais
B20: Recolha de resíduos alimentares | C20: t CO2 eq | D20: ='3C. Análise de CB'!D45 -> 28.9395402 | E20: ='3C. Análise de CB'!E45 -> 0
B21: Tratamento de resíduos alimentares | C21: t CO2 eq | D21: ='3C. Análise de CB'!D46 -> 6.414630061 | E21: ='3C. Análise de CB'!E46 -> 0
B22: Soluções de compostagem local | C22: t CO2 eq | D22: ='3C. Análise de CB'!D47 -> 14.12693978 | E22: ='3C. Análise de CB'!E47 -> 18.25063054
B23: Emissões evitadas (provenientes do desvio de RA dos RU) | C23: t CO2 eq | D23: ='3C. Análise de CB'!D49 -> -49.05724642 | E23: ='3C. Análise de CB'!E49 -> -43.58603974
B24: Emissões líquidas | C24: t CO2 eq | D24: =SUM(D20:D23) -> 0.4238636245 | E24: =SUM(E20:E23) -> -25.3354092

Sheet 5. Pressupostos
A1: Pressupostos
B3: Modelação da recolha
C5: Porta-a-porta | D5: Coletiva (contentores na via pública) | E5: Sistema de sacos óticos | F5: Compostagem doméstica | G5: Compostagem comunitária | H5: Referências
B6: Taxa de captura max. | C6: 0.7 | D6: 0.5 | E6: 0.6 | F6: 0.45 | G6: 0.45 | H6: Zero waste europe, 2022 & SPORA (ARCtalunya), 2018 + Zero waste europe, 2020 + Tratolixo, 2020 | I6: ZWE (2022). How to best collect bio-waste: Guidance for municipalities on the best performing methods to separately collect bio-waste. (https://zerowastecities.eu/wp-content/uploads/2022/11/How-to-best-collect-bio-waste-EN-Final.pdf)
B7: Frequência (x/semana) | C7: 2 | D7: 3 | E7: 3 | F7: - | G7: - | H7: pressuposto assumido pela equipa de trabalho | I7: ZWE (20220). Bio-waste generation in the EU: Current capture levels and future potential (https://zerowasteeurope.eu/wp-content/uploads/2020/07/2020_07_06_bic_zwe_report_bio_waste.pdf)
B8: Aloj. por contentor | C8: 1 | D8: 30 | E8: 10 | F8: - | G8: - | H8: pressuposto assumido pela equipa de trabalho (RASARP | ERSAR - medianas RI: 8,9 | RS: 97 ) | I8: SPORA (2018). Guide and experiencies of reference for implementing the selective collection of municipal waste (https://residus.gencat.cat/web/.content/home/lagencia/publicacions/prevencio/guia_experiencies_implantacio_rsrm_en.pdf)
B9: Contentores recolhidos por rota | C9: 300 | D9: 100 | E9: 100 | F9: - | G9: - | H9: pressuposto assumido pela equipa de trabalho | I9: Tratolixo (2020): Avaliação técnica, económica e ambiental do sistema de recolha seletiva baseado em co-coleção. Disponível em: https://www.tratolixo.pt/assets/docs/Relat%c3%83%c2%b3rio%20Final_anexo%20munic%c3%83%c2%adpios_30.09.2020.pdf
B10: Dias de trabalho por semana | C10: 5 | D10: 5 | E10: 5 | F10: 5 | G10: 5 | H10: pressuposto assumido pela equipa de trabalho
B11: N.º de turnos | C11: 2 | D11: 2 | E11: 2 | F11: - | G11: - | H11: pressuposto assumido pela equipa de trabalho
B12: Taxas de contaminação | C12: 0.06 | D12: 0.139 | E12: 0.06 | F12: - | G12: - | H12: Zero waste europe, 2022 + Tratolixo, 2020
B13: Combustível (l/t) | C13: 15 | F13: - | G13: - | H13: pressuposto assumido pela equipa de trabalho (RASARP | ERSAR - medianas RI: 6,6 | RS: 24,5 )
B14: Frequência de monitorização (x/ano/contentor) | C14: - | D14: - | E14: - | F14: 2 | G14: =2*52 -> 104 | H14: pressuposto assumido pela equipa de trabalho
B15: Aloj. por contentor | C15: - | D15: - | E15: - | F15: 1 | G15: 30 | H15: pressuposto assumido pela equipa de trabalho
B16: N.º de locais de compostagem monitorizados por dia e por operador | C16: - | D16: - | E16: - | F16: 6 | G16: 4 | H16: pressuposto assumido pela equipa de trabalho
B18: Custo-benefício
C20: investimento | D20: investimento anualizado | E20: custos de operação | H20: Referências | J20: custos de comunicação
B21: Comunicação (€/aloj.) | C21: - | D21: - | E21: 2 | H21: pressuposto da equipa de trabalho baseado em referências nacionais e europeias | J21: Lipor (0,61€/hab) | K21: estimado de acordo com: https://www.lipor.pt/fotos/editor2/PORTAL_2020/INTERNACIONAL/CASE_STUDY/AF_LIPOR_EN.pdf
B22: Contentor de 30L (€/unidade) | C22: 20 | D22: =C22/(((1-(1/((1+$J$41)^$J$42)))/$J$41)) -> 4.49254227 | E22: =C22*3% -> 0.6 | H22: pressuposto assumido pela equipa de trabalho baseado emm contratos públicos recentes (Portal Base) | J22: WRAP (1,7€/hh) | K22: https://wrap.org.uk/sites/default/files/2021-10/HH%20food%20waste%20guide%20section%206%202021%20final.pdf
B23: Contentor de 120-240L (€/unidade) | C23: 40 | D23: =C23/(((1-(1/((1+$J$41)^$J$42)))/$J$41)) -> 8.98508454 | E23: =C23*3%+2.7 -> 3.9 | H23: pressuposto assumido pela equipa de trabalho baseado em contratos públicos recentes (Portal Base) | J23: Zerowaste Scotland (1€/hh - 2,2€/hh) | K23: https://www.zerowastescotland.org.uk/sites/default/files/Improving%20Recycling%20Through%20Effective%20Communications_ZWS_0.pdf
B24: Contentor de 1100L (€/unidade) | C24: 250 | D24: =C24/(((1-(1/((1+$J$41)^$J$42)))/$J$41)) -> 56.15677837 | E24: =C24*3%+2.7 -> 10.2 | H24: pressuposto assumido pela equipa de trabalho baseado em contratos públicos recentes (Portal Base)
B25: Baldes de cozinha (€/unidade) | C25: 10 | D25: =C25/(((1-(1/((1+$J$41)^$J$42)))/$J$41)) -> 2.246271135 | E25: =C25*3% -> 0.3 | H25: pressuposto assumido pela equipa de trabalho baseado em contratos públicos recentes (Portal Base)
B26: Sacos para baldes de cozinha e sacos óticos (€/unidade) | C26: 0.03 | D26: - | E26: - | H26: consulta de mercado
B27: Tecnologias de controlo de acesso (€/contentor) | C27: 1300 | D27: =C27/(((1-(1/((1+$J$41)^$J$42)))/$J$41)) -> 292.0152475 | E27: =C27*5% -> 65 | H27: pressuposto assumido pela equipa de trabalho baseado em contratos públicos recentes (Portal Base)
B28: Contentores de compostagem doméstica (€/unidade) | C28: 40 | D28: =C28/(((1-(1/((1+$J$41)^$J$42)))/$J$41)) -> 8.98508454 | E28: =C28*3% -> 1.2 | H28: pressuposto assumido pela equipa de trabalho baseado em contratos públicos recentes (Portal Base)
B29: Contentores de compostagem comunitária (€/unidade) | C29: 2500 | D29: =C29/(((1-(1/((1+$J$41)^$J$43)))/$J$41)) -> 308.2273608 | E29: =C29*3% -> 75 | H29: pressuposto assumido pela equipa de trabalho baseado em contratos públicos recentes (Portal Base)
B30: RH (€/FTE) | C30: - | D30: - | E30: =(22000+16000*2)/3 -> 18000 | H30: pressuposto assumido pela equipa de trabalho
B31: Veículos (€/veículos) | C31: 140000 | D31: =C31/(((1-(1/((1+$J$41)^$J$43)))/$J$41)) -> 17260.73221 | E31: =C31*5%+1000 -> 8000 | H31: pressuposto assumido pela equipa de trabalho baseado emm contratos públicos recentes (Portal Base)
B32: Combustível (€/l) | C32: - | D32: - | E32: 1.8 | H32: pressuposto assumido pela equipa de trabalho
B33: Custos de distribuição de sacos para baldes de cozinha e sacos óticos (€/saco) | C33: - | D33: - | E33: 0.005 | H33: Tratolixo, 2020
B34: Custos com fiscalização (% em função do capex) | E34: 0.05
H37: Custo equivalente anual
C38: TGR | D38: D1 | E38: R1
B39: 2022 | C39: 22 | D39: 1 | E39: 0.2
B40: 2023 | C40: 25 | D40: 1 | E40: 0.2
B41: 2024 | C41: 30 | D41: 1 | E41: 0.2 | I41: r= | J41: 0.04
B42: 2025 | C42: 35 | D42: 1 | E42: 0.2 | H42: contentores | I42: t= | J42: 5
H43: veículos | I43: t= | J43: 10
C44: Redução da TGR
B45: % biorresíduos recuperados | C45: D1 | D45: R1
B46: 0.05 | C46: 0.1 | D46: 0.025
B47: 0.15 | C47: 0.3 | D47: 0.055
B48: 0.3 | C48: 0.5 | D48: 0.085
C51: RE | D51: Incineração
B52: Produção de eletricidade (kWh/t) | C52: 330 | D52: 551
B53: preço de exportação da electricidade (€/kWh) | C53: 0.1
B56: Emissões de CO2
C58: t CO2 eq | H58: Referências
B59: Recolha (por litro de combustível) | C59: 0.00268 | H59: DEFRA, 2022
B60: Compostagem centralizada (por ton de biorresíduos) | C60: =8.91058139534884/1000 -> 0.008910581395 | H60: DEFRA, 2022
B61: Digestão Anaeróbia (por ton de biorresíduos) | C61: =8.91058139534884/1000 -> 0.008910581395 | H61: DEFRA, 2022
B62: Compostagem local (por ton de biorresíduos) | C62: =8.91058139534884/1000 -> 0.008910581395 | H62: DEFRA, 2022
B63: Incineração (por ton de biorresíduos) | C63: =21.2801937984496/1000 -> 0.0212801938 | H63: DEFRA, 2022
B64: Aterro (por ton de biorresíduos) | C64: =626.856145223945/1000 -> 0.6268561452 | H64: DEFRA, 2022
H65: DEFRA (2022). Greenhouse gas reporting: Conversion factors 2022 (https://www.gov.uk/government/publications/greenhouse-gas-reporting-conversion-factors-2022)

Sheet Listas (hidden)
B1: Solução de tratamento para a fração resto | C1: Solução de tratamento de biorresíduos | D1: S/N
B2: Incineração | C2: Compostagem (centralizada) | D2: Sim
B3: Aterro | C3: Digestão anaeróbia | D3: Não
